[Event "Titled Tuesday Blitz February 07 Early 2023"]
[White "Kilic, Eray"]
[Black "Marn, Jan"]
[WhiteFideId "44517173"]
[BlackFideId "14619245"]
[WhiteElo "2414"]
[BlackElo "2345"]
[Result "1-0"]
[Round "03"]
[TimeControl "180+2"]
[Date "2023.02.07"]
[WhiteClock "0:01:37"]
[BlackClock "0:00:14"]

1. e4 {[%clk 0:03:00]}  e5 {[%clk 0:03:00]} 2. Nf3 {[%clk 0:03:01]}  Nc6 {[%clk 0:03:00]} 3. Bb5 {[%clk 0:03:01]}  a6 {[%clk 0:03:00]} 4. Ba4 {[%clk 0:03:01]}  d6 {[%clk 0:03:01]} 5. O-O {[%clk 0:03:01]}  Bd7 {[%clk 0:03:01]} 6. c3 {[%clk 0:03:02]}  Nge7 {[%clk 0:03:01]} 7. d4 {[%clk 0:03:01]}  Ng6 {[%clk 0:03:02]} 8. Re1 {[%clk 0:03:01]}  Be7 {[%clk 0:03:02]} 9. Nbd2 {[%clk 0:03:01]}  h6 {[%clk 0:03:02]} 10. Nf1 {[%clk 0:03:01]}  Bg5 {[%clk 0:03:02]} 11. Nxg5 {[%clk 0:02:57]}  hxg5 {[%clk 0:03:02]} 12. Ng3 {[%clk 0:02:57]}  Qf6 {[%clk 0:02:43]} 13. Nh5 {[%clk 0:02:47]}  Qe7 {[%clk 0:01:32]} 14. d5 {[%clk 0:02:45]}  Nb8 {[%clk 0:01:25]} 15. Bxd7+ {[%clk 0:02:42]}  Nxd7 {[%clk 0:01:26]} 16. Nxg7+ {[%clk 0:02:42]}  Kf8 {[%clk 0:01:26]} 17. Nf5 {[%clk 0:02:43]}  Qf6 {[%clk 0:01:26]} 18. Qg4 {[%clk 0:02:41]}  Nf4 {[%clk 0:01:13]} 19. g3 {[%clk 0:02:27]}  Nh3+ {[%clk 0:01:12]} 20. Kg2 {[%clk 0:02:27]}  Nb6 {[%clk 0:00:59]} 21. b3 {[%clk 0:02:19]}  Nc8 {[%clk 0:00:59]} 22. c4 {[%clk 0:02:10]}  Ne7 {[%clk 0:00:59]} 23. Re2 {[%clk 0:02:05]}  Nxf5 {[%clk 0:00:44]} 24. exf5 {[%clk 0:02:04]}  Ke7 {[%clk 0:00:42]} 25. c5 {[%clk 0:01:56]}  Rag8 {[%clk 0:00:30]} 26. cxd6+ {[%clk 0:01:55]}  Qxd6 {[%clk 0:00:26]} 27. Qe4 {[%clk 0:01:41]}  f6 {[%clk 0:00:24]} 28. a4 {[%clk 0:01:38]}  Rd8 {[%clk 0:00:14]} 29. Ba3 {[%clk 0:01:37]} 1-0


[Site "https://www.chess.com"]

[Event "Titled Tuesday Blitz February 07 Early 2023"]
[White "Iniyan, P"]
[Black "Lorenzo De La Riva, Lazaro"]
[WhiteFideId "25002767"]
[BlackFideId "2268809"]
[WhiteElo "2525"]
[BlackElo "2404"]
[Result "1-0"]
[Round "03"]
[TimeControl "180+2"]
[Date "2023.02.07"]
[WhiteClock "0:00:11"]
[BlackClock "0:00:01"]

1. b3 {[%clk 0:02:58]}  Nf6 {[%clk 0:02:55]} 2. Bb2 {[%clk 0:02:57]}  g6 {[%clk 0:02:55]} 3. f4 {[%clk 0:02:55]}  Bg7 {[%clk 0:02:53]} 4. Nf3 {[%clk 0:02:55]}  O-O {[%clk 0:02:52]} 5. e3 {[%clk 0:02:55]}  c5 {[%clk 0:02:51]} 6. Be2 {[%clk 0:02:52]}  Nc6 {[%clk 0:02:50]} 7. O-O {[%clk 0:02:49]}  d6 {[%clk 0:02:49]} 8. a4 {[%clk 0:02:47]}  b6 {[%clk 0:02:46]} 9. Na3 {[%clk 0:02:45]}  Bb7 {[%clk 0:02:43]} 10. Nc4 {[%clk 0:02:39]}  a6 {[%clk 0:02:34]} 11. Rb1 {[%clk 0:01:17]}  b5 {[%clk 0:02:27]} 12. Na3 {[%clk 0:01:17]}  b4 {[%clk 0:02:17]} 13. Nc4 {[%clk 0:01:17]}  a5 {[%clk 0:02:15]} 14. Qe1 {[%clk 0:01:15]}  Ba6 {[%clk 0:01:54]} 15. Bd3 {[%clk 0:01:10]}  e6 {[%clk 0:01:22]} 16. Qe2 {[%clk 0:00:46]}  Bxc4 {[%clk 0:01:19]} 17. Bxc4 {[%clk 0:00:46]}  d5 {[%clk 0:01:16]} 18. Bb5 {[%clk 0:00:43]}  Qb6 {[%clk 0:01:09]} 19. h3 {[%clk 0:00:21]}  Rad8 {[%clk 0:01:04]} 20. g4 {[%clk 0:00:20]}  Ne4 {[%clk 0:01:01]} 21. Bxg7 {[%clk 0:00:20]}  Kxg7 {[%clk 0:00:59]} 22. Qg2 {[%clk 0:00:20]}  f5 {[%clk 0:00:36]} 23. d3 {[%clk 0:00:14]}  Nc3 {[%clk 0:00:34]} 24. Ng5 {[%clk 0:00:12]}  Ne7 {[%clk 0:00:25]} 25. Rbe1 {[%clk 0:00:12]}  h6 {[%clk 0:00:21]} 26. Nf3 {[%clk 0:00:12]}  Nxb5 {[%clk 0:00:19]} 27. axb5 {[%clk 0:00:12]}  Qxb5 {[%clk 0:00:19]} 28. e4 {[%clk 0:00:13]}  dxe4 {[%clk 0:00:17]} 29. dxe4 {[%clk 0:00:14]}  fxe4 {[%clk 0:00:15]} 30. Rxe4 {[%clk 0:00:15]}  Qc6 {[%clk 0:00:12]} 31. Qe2 {[%clk 0:00:13]}  Rd6 {[%clk 0:00:11]} 32. Ne5 {[%clk 0:00:12]}  Qc7 {[%clk 0:00:10]} 33. Nc4 {[%clk 0:00:13]}  Rc6 {[%clk 0:00:07]} 34. Rxe6 {[%clk 0:00:13]}  Rxe6 {[%clk 0:00:07]} 35. Qxe6 {[%clk 0:00:14]}  Rf6 {[%clk 0:00:08]} 36. Qe4 {[%clk 0:00:13]}  Qd7 {[%clk 0:00:06]} 37. Re1 {[%clk 0:00:12]}  Rf7 {[%clk 0:00:05]} 38. Ne5 {[%clk 0:00:11]}  Qe6 {[%clk 0:00:05]} 39. Nxf7 {[%clk 0:00:11]}  Qxe4 {[%clk 0:00:06]} 40. Rxe4 {[%clk 0:00:12]}  Kxf7 {[%clk 0:00:07]} 41. Re5 {[%clk 0:00:13]}  a4 {[%clk 0:00:04]} 42. bxa4 {[%clk 0:00:12]}  c4 {[%clk 0:00:05]} 43. Re4 {[%clk 0:00:11]}  b3 {[%clk 0:00:01]} 44. cxb3 {[%clk 0:00:11]}  cxb3 {[%clk 0:00:01]} 45. Rb4 {[%clk 0:00:11]} 1-0


[Site "https://www.chess.com"]

[Event "Titled Tuesday Blitz February 07 Early 2023"]
[White "Orozbaev, Eldiar"]
[Black "Mogirzan, Matei-Valeriu"]
[WhiteFideId "13802240"]
[BlackFideId "1257455"]
[WhiteElo "2235"]
[BlackElo "1813"]
[Result "1-0"]
[Round "03"]
[TimeControl "180+2"]
[Date "2023.02.07"]
[WhiteClock "0:00:20"]
[BlackClock "0:00:06"]

1. e4 {[%clk 0:03:00]}  c5 {[%clk 0:02:58]} 2. c3 {[%clk 0:03:01]}  Nf6 {[%clk 0:02:53]} 3. e5 {[%clk 0:03:01]}  Nd5 {[%clk 0:02:53]} 4. d4 {[%clk 0:03:02]}  cxd4 {[%clk 0:02:53]} 5. Nf3 {[%clk 0:03:02]}  Nc6 {[%clk 0:02:53]} 6. cxd4 {[%clk 0:03:02]}  d6 {[%clk 0:02:51]} 7. Nc3 {[%clk 0:03:02]}  Nxc3 {[%clk 0:02:51]} 8. bxc3 {[%clk 0:03:03]}  g6 {[%clk 0:02:36]} 9. Be2 {[%clk 0:02:29]}  Bg7 {[%clk 0:02:21]} 10. exd6 {[%clk 0:02:27]}  Qxd6 {[%clk 0:02:18]} 11. O-O {[%clk 0:02:28]}  O-O {[%clk 0:02:17]} 12. Bg5 {[%clk 0:02:22]}  b6 {[%clk 0:01:46]} 13. Re1 {[%clk 0:02:14]}  Bb7 {[%clk 0:01:39]} 14. Bh4 {[%clk 0:02:08]}  Na5 {[%clk 0:01:09]} 15. Rc1 {[%clk 0:01:55]}  Rac8 {[%clk 0:01:04]} 16. Qd2 {[%clk 0:01:47]}  e5 {[%clk 0:00:52]} 17. dxe5 {[%clk 0:01:36]}  Qxd2 {[%clk 0:00:48]} 18. Nxd2 {[%clk 0:01:37]}  Bxe5 {[%clk 0:00:45]} 19. Bf3 {[%clk 0:00:46]}  Bxc3 {[%clk 0:00:33]} 20. Bxb7 {[%clk 0:00:46]}  Nxb7 {[%clk 0:00:34]} 21. Rcd1 {[%clk 0:00:42]}  Rfe8 {[%clk 0:00:26]} 22. Rxe8+ {[%clk 0:00:34]}  Rxe8 {[%clk 0:00:27]} 23. Nf3 {[%clk 0:00:34]}  Nc5 {[%clk 0:00:22]} 24. h3 {[%clk 0:00:32]}  Kg7 {[%clk 0:00:20]} 25. Bg3 {[%clk 0:00:30]}  Ne4 {[%clk 0:00:16]} 26. Bf4 {[%clk 0:00:30]}  Nf6 {[%clk 0:00:08]} 27. Be3 {[%clk 0:00:27]}  Kg8 {[%clk 0:00:05]} 28. Rc1 {[%clk 0:00:27]}  Ne4 {[%clk 0:00:05]} 29. Ng5 {[%clk 0:00:23]}  Nxg5 {[%clk 0:00:02]} 30. Rxc3 {[%clk 0:00:24]}  Ne6 {[%clk 0:00:03]} 31. Ra3 {[%clk 0:00:23]}  Re7 {[%clk 0:00:02]} 32. Bh6 {[%clk 0:00:23]}  Rc7 {[%clk 0:00:02]} 33. Rd3 {[%clk 0:00:24]}  f5 {[%clk 0:00:02]} 34. Rd6 {[%clk 0:00:24]}  Kf7 {[%clk 0:00:03]} 35. a4 {[%clk 0:00:22]}  g5 {[%clk 0:00:03]} 36. h4 {[%clk 0:00:18]}  Rc1+ {[%clk 0:00:03]} 37. Kh2 {[%clk 0:00:18]}  Rc4 {[%clk 0:00:02]} 38. hxg5 {[%clk 0:00:17]}  Rxa4 {[%clk 0:00:02]} 39. Rd7+ {[%clk 0:00:18]}  Kg6 {[%clk 0:00:02]} 40. Rd6 {[%clk 0:00:16]}  Kf7 {[%clk 0:00:02]} 41. g3 {[%clk 0:00:17]}  Ra2 {[%clk 0:00:02]} 42. Kg1 {[%clk 0:00:16]}  Ra1+ {[%clk 0:00:02]} 43. Kg2 {[%clk 0:00:17]}  Re1 {[%clk 0:00:03]} 44. f4 {[%clk 0:00:16]}  Re2+ {[%clk 0:00:03]} 45. Kf3 {[%clk 0:00:16]}  Re4 {[%clk 0:00:04]} 46. Rd7+ {[%clk 0:00:17]}  Kg6 {[%clk 0:00:03]} 47. Rxa7 {[%clk 0:00:17]}  Nd4+ {[%clk 0:00:03]} 48. Kf2 {[%clk 0:00:17]}  Re2+ {[%clk 0:00:03]} 49. Kf1 {[%clk 0:00:18]}  Rb2 {[%clk 0:00:02]} 50. Bg7 {[%clk 0:00:17]}  Nf3 {[%clk 0:00:02]} 51. Bxb2 {[%clk 0:00:16]}  Nd2+ {[%clk 0:00:01]} 52. Ke2 {[%clk 0:00:16]}  Ne4 {[%clk 0:00:02]} 53. Rg7+ {[%clk 0:00:16]}  Kh5 {[%clk 0:00:02]} 54. Rxh7+ {[%clk 0:00:17]}  Kg4 {[%clk 0:00:02]} 55. g6 {[%clk 0:00:18]}  Kxg3 {[%clk 0:00:03]} 56. g7 {[%clk 0:00:18]}  Kxf4 {[%clk 0:00:04]} 57. g8=Q {[%clk 0:00:18]}  Ng3+ {[%clk 0:00:05]} 58. Qxg3+ {[%clk 0:00:18]}  Kxg3 {[%clk 0:00:05]} 59. Rf7 {[%clk 0:00:19]}  Kg4 {[%clk 0:00:05]} 60. Be5 {[%clk 0:00:19]}  b5 {[%clk 0:00:05]} 61. Ke3 {[%clk 0:00:20]}  b4 {[%clk 0:00:05]} 62. Rg7+ {[%clk 0:00:20]}  Kh5 {[%clk 0:00:05]} 63. Kf3 {[%clk 0:00:21]}  b3 {[%clk 0:00:06]} 64. Rb7 {[%clk 0:00:20]} 1-0


[Site "https://www.chess.com"]

[Event "Titled Tuesday Blitz February 07 Early 2023"]
[White "Zahid, Sanatan"]
[Black "Senlle Caride, Miguel"]
[WhiteFideId "10201963"]
[BlackFideId "2282500"]
[WhiteElo "1930"]
[BlackElo "2343"]
[Result "0-1"]
[Round "03"]
[TimeControl "180+2"]
[Date "2023.02.07"]
[WhiteClock "0:00:27"]
[BlackClock "0:00:10"]

1. d4 {[%clk 0:03:00]}  Nf6 {[%clk 0:02:59]} 2. Nc3 {[%clk 0:03:00]}  d5 {[%clk 0:02:58]} 3. Bf4 {[%clk 0:02:59]}  e6 {[%clk 0:02:51]} 4. Nb5 {[%clk 0:02:59]}  Na6 {[%clk 0:02:47]} 5. e3 {[%clk 0:02:59]}  c6 {[%clk 0:02:43]} 6. Nc3 {[%clk 0:02:59]}  Bd6 {[%clk 0:02:44]} 7. Nf3 {[%clk 0:02:58]}  O-O {[%clk 0:02:37]} 8. a3 {[%clk 0:02:49]}  c5 {[%clk 0:02:34]} 9. Bg3 {[%clk 0:02:40]}  cxd4 {[%clk 0:02:13]} 10. exd4 {[%clk 0:02:39]}  Ne4 {[%clk 0:02:13]} 11. Bd3 {[%clk 0:02:32]}  f5 {[%clk 0:02:03]} 12. Bxd6 {[%clk 0:02:28]}  Qxd6 {[%clk 0:02:04]} 13. Ne2 {[%clk 0:02:28]}  Nb8 {[%clk 0:01:53]} 14. O-O {[%clk 0:02:24]}  Nc6 {[%clk 0:01:53]} 15. c3 {[%clk 0:02:24]}  Bd7 {[%clk 0:01:49]} 16. Qc1 {[%clk 0:02:14]}  f4 {[%clk 0:01:33]} 17. Qb1 {[%clk 0:02:05]}  Be8 {[%clk 0:00:58]} 18. Bxe4 {[%clk 0:01:31]}  dxe4 {[%clk 0:00:59]} 19. Nd2 {[%clk 0:01:32]}  f3 {[%clk 0:00:39]} 20. Ng3 {[%clk 0:01:24]}  fxg2 {[%clk 0:00:36]} 21. Re1 {[%clk 0:01:24]}  Qf4 {[%clk 0:00:31]} 22. Ndxe4 {[%clk 0:01:23]}  Bg6 {[%clk 0:00:26]} 23. Qc1 {[%clk 0:01:21]}  Qh4 {[%clk 0:00:17]} 24. Qg5 {[%clk 0:01:15]}  Qh3 {[%clk 0:00:17]} 25. Re3 {[%clk 0:01:10]}  Rf7 {[%clk 0:00:12]} 26. Nd6 {[%clk 0:01:09]}  Rf6 {[%clk 0:00:09]} 27. Nge4 {[%clk 0:01:07]}  Rf3 {[%clk 0:00:05]} 28. Ng3 {[%clk 0:00:59]}  Rxe3 {[%clk 0:00:05]} 29. Qxe3 {[%clk 0:01:00]}  Rf8 {[%clk 0:00:04]} 30. Re1 {[%clk 0:01:00]}  h5 {[%clk 0:00:05]} 31. Qxe6+ {[%clk 0:00:59]}  Qxe6 {[%clk 0:00:04]} 32. Rxe6 {[%clk 0:01:00]}  Bd3 {[%clk 0:00:05]} 33. Nde4 {[%clk 0:00:58]}  h4 {[%clk 0:00:04]} 34. Nh5 {[%clk 0:00:53]}  Bc4 {[%clk 0:00:03]} 35. Rg6 {[%clk 0:00:50]}  Kh7 {[%clk 0:00:04]} 36. Rxg2 {[%clk 0:00:41]}  Kh6 {[%clk 0:00:05]} 37. Rg5 {[%clk 0:00:36]}  Re8 {[%clk 0:00:03]} 38. Nxg7 {[%clk 0:00:28]}  Rxe4 {[%clk 0:00:03]} 39. Rc5 {[%clk 0:00:17]}  Re1+ {[%clk 0:00:03]} 40. Kg2 {[%clk 0:00:18]}  Bf1+ {[%clk 0:00:03]} 41. Kf3 {[%clk 0:00:18]}  Kxg7 {[%clk 0:00:04]} 42. d5 {[%clk 0:00:19]}  Ne5+ {[%clk 0:00:04]} 43. Kf4 {[%clk 0:00:19]}  Nd3+ {[%clk 0:00:04]} 44. Kg5 {[%clk 0:00:19]}  Nxc5 {[%clk 0:00:05]} 45. c4 {[%clk 0:00:19]}  Nd7 {[%clk 0:00:06]} 46. b4 {[%clk 0:00:20]}  b6 {[%clk 0:00:06]} 47. c5 {[%clk 0:00:21]}  bxc5 {[%clk 0:00:07]} 48. bxc5 {[%clk 0:00:22]}  Nxc5 {[%clk 0:00:08]} 49. f3 {[%clk 0:00:23]}  Nd7 {[%clk 0:00:09]} 50. f4 {[%clk 0:00:23]}  Bc4 {[%clk 0:00:09]} 51. f5 {[%clk 0:00:24]}  Bxd5 {[%clk 0:00:10]} 52. f6+ {[%clk 0:00:25]}  Nxf6 {[%clk 0:00:10]} 53. Kxh4 {[%clk 0:00:26]}  Rg1 {[%clk 0:00:10]} 54. a4 {[%clk 0:00:26]}  Rg4+ {[%clk 0:00:10]} 55. Kh3 {[%clk 0:00:27]}  Bg2# {[%clk 0:00:10]} 0-1


[Site "https://www.chess.com"]

[Event "Titled Tuesday Blitz February 07 Early 2023"]
[White "Paravyan, David"]
[Black "Borgaonkar Akshay"]
[WhiteFideId "4194985"]
[BlackFideId "25639110"]
[WhiteElo "2601"]
[BlackElo "1991"]
[Result "1-0"]
[Round "03"]
[TimeControl "180+2"]
[Date "2023.02.07"]
[WhiteClock "0:00:03"]
[BlackClock "0:00:02"]

1. e4 {[%clk 0:03:00]}  c5 {[%clk 0:03:00]} 2. Nf3 {[%clk 0:03:00]}  e6 {[%clk 0:03:00]} 3. d4 {[%clk 0:02:59]}  cxd4 {[%clk 0:03:01]} 4. Nxd4 {[%clk 0:03:00]}  a6 {[%clk 0:03:01]} 5. h3 {[%clk 0:02:59]}  Ne7 {[%clk 0:03:01]} 6. Nc3 {[%clk 0:02:48]}  Nbc6 {[%clk 0:03:00]} 7. Nb3 {[%clk 0:02:48]}  Qc7 {[%clk 0:02:57]} 8. g3 {[%clk 0:02:41]}  Ng6 {[%clk 0:02:56]} 9. h4 {[%clk 0:02:41]}  h5 {[%clk 0:02:56]} 10. Be2 {[%clk 0:02:38]}  Bd6 {[%clk 0:02:56]} 11. Bxh5 {[%clk 0:02:22]}  b5 {[%clk 0:02:05]} 12. Bxg6 {[%clk 0:02:09]}  fxg6 {[%clk 0:02:05]} 13. Bg5 {[%clk 0:02:09]}  Bb7 {[%clk 0:02:02]} 14. f4 {[%clk 0:01:48]}  Be7 {[%clk 0:01:36]} 15. Qg4 {[%clk 0:01:31]}  Bxg5 {[%clk 0:01:22]} 16. Qxg5 {[%clk 0:01:32]}  Ne7 {[%clk 0:01:23]} 17. Qc5 {[%clk 0:01:13]}  Bc6 {[%clk 0:01:19]} 18. O-O-O {[%clk 0:01:02]}  Rh5 {[%clk 0:01:17]} 19. Qd4 {[%clk 0:00:44]}  a5 {[%clk 0:01:10]} 20. a3 {[%clk 0:00:23]}  Kf7 {[%clk 0:00:50]} 21. Rhf1 {[%clk 0:00:19]}  Kg8 {[%clk 0:00:48]} 22. Kb1 {[%clk 0:00:12]}  Rb8 {[%clk 0:00:42]} 23. Rfe1 {[%clk 0:00:09]}  b4 {[%clk 0:00:41]} 24. axb4 {[%clk 0:00:10]}  axb4 {[%clk 0:00:42]} 25. Na2 {[%clk 0:00:11]}  Ba4 {[%clk 0:00:39]} 26. Qd6 {[%clk 0:00:09]}  Qd8 {[%clk 0:00:30]} 27. Nc5 {[%clk 0:00:09]}  Bxc2+ {[%clk 0:00:29]} 28. Kxc2 {[%clk 0:00:09]}  Rxc5+ {[%clk 0:00:29]} 29. Qxc5 {[%clk 0:00:03]}  Rc8 {[%clk 0:00:30]} 30. Qxc8 {[%clk 0:00:03]}  Qxc8+ {[%clk 0:00:31]} 31. Kb1 {[%clk 0:00:04]}  b3 {[%clk 0:00:27]} 32. Nc3 {[%clk 0:00:04]}  Nc6 {[%clk 0:00:27]} 33. Rd6 {[%clk 0:00:03]}  Qc7 {[%clk 0:00:26]} 34. Red1 {[%clk 0:00:04]}  Qa5 {[%clk 0:00:19]} 35. Rxd7 {[%clk 0:00:03]}  Nb4 {[%clk 0:00:19]} 36. h5 {[%clk 0:00:03]}  gxh5 {[%clk 0:00:19]} 37. f5 {[%clk 0:00:03]}  Na2 {[%clk 0:00:19]} 38. Ne2 {[%clk 0:00:01]}  Nb4 {[%clk 0:00:18]} 39. Nc3 {[%clk 0:00:02]}  Nc2 {[%clk 0:00:17]} 40. Kc1 {[%clk 0:00:02]}  Qa1+ {[%clk 0:00:17]} 41. Nb1 {[%clk 0:00:01]}  exf5 {[%clk 0:00:12]} 42. exf5 {[%clk 0:00:02]}  Nb4 {[%clk 0:00:12]} 43. f6 {[%clk 0:00:03]}  Na2+ {[%clk 0:00:11]} 44. Kd2 {[%clk 0:00:03]}  Qxb2+ {[%clk 0:00:12]} 45. Ke3 {[%clk 0:00:04]}  Qe5+ {[%clk 0:00:12]} 46. Kd3 {[%clk 0:00:03]}  Nb4+ {[%clk 0:00:12]} 47. Kc4 {[%clk 0:00:03]}  Nc6 {[%clk 0:00:09]} 48. Rxg7+ {[%clk 0:00:03]}  Kf8 {[%clk 0:00:08]} 49. Rgd7 {[%clk 0:00:02]}  Qxf6 {[%clk 0:00:06]} 50. Kc5 {[%clk 0:00:02]}  Ne7 {[%clk 0:00:03]} 51. Rd8+ {[%clk 0:00:02]}  Kf7 {[%clk 0:00:03]} 52. R8d6 {[%clk 0:00:02]}  Qf2+ {[%clk 0:00:03]} 53. Kb4 {[%clk 0:00:03]}  Qc2 {[%clk 0:00:04]} 54. R6d2 {[%clk 0:00:02]}  Nc6+ {[%clk 0:00:02]} 55. Kb5 {[%clk 0:00:03]} 1-0


[Site "https://www.chess.com"]

[Event "Titled Tuesday Blitz February 07 Early 2023"]
[White "Chigaev, Maksim"]
[Black "Mathieu, Phileas"]
[WhiteFideId "4108116"]
[BlackFideId "36048410"]
[WhiteElo "2628"]
[BlackElo "2374"]
[Result "0-1"]
[Round "03"]
[TimeControl "180+2"]
[Date "2023.02.07"]
[WhiteClock "0:00:09"]
[BlackClock "0:00:07"]

1. e4 {[%clk 0:03:00]}  e5 {[%clk 0:02:56]} 2. Nf3 {[%clk 0:03:00]}  Nc6 {[%clk 0:02:55]} 3. Bc4 {[%clk 0:03:01]}  Nf6 {[%clk 0:02:55]} 4. d3 {[%clk 0:03:01]}  h6 {[%clk 0:02:55]} 5. a4 {[%clk 0:03:00]}  d6 {[%clk 0:02:55]} 6. h3 {[%clk 0:02:58]}  g5 {[%clk 0:02:54]} 7. c3 {[%clk 0:02:53]}  Bg7 {[%clk 0:02:55]} 8. Nbd2 {[%clk 0:02:53]}  O-O {[%clk 0:02:54]} 9. Nf1 {[%clk 0:02:52]}  d5 {[%clk 0:02:55]} 10. exd5 {[%clk 0:02:52]}  Nxd5 {[%clk 0:02:55]} 11. Ng3 {[%clk 0:02:52]}  Nf4 {[%clk 0:02:55]} 12. O-O {[%clk 0:02:52]}  Be6 {[%clk 0:02:51]} 13. Bxe6 {[%clk 0:02:49]}  Nxe6 {[%clk 0:02:50]} 14. Re1 {[%clk 0:02:48]}  Qd5 {[%clk 0:02:45]} 15. Nf5 {[%clk 0:02:45]}  Rad8 {[%clk 0:02:43]} 16. Nxg7 {[%clk 0:01:45]}  Kxg7 {[%clk 0:02:44]} 17. a5 {[%clk 0:01:42]}  a6 {[%clk 0:02:42]} 18. Qa4 {[%clk 0:01:40]}  Nc5 {[%clk 0:02:33]} 19. Qg4 {[%clk 0:01:38]}  f6 {[%clk 0:01:41]} 20. h4 {[%clk 0:01:14]}  Qxd3 {[%clk 0:01:34]} 21. hxg5 {[%clk 0:01:11]}  hxg5 {[%clk 0:01:35]} 22. Be3 {[%clk 0:01:11]}  Qd7 {[%clk 0:01:18]} 23. Qc4 {[%clk 0:01:10]}  Ne6 {[%clk 0:01:13]} 24. Qb3 {[%clk 0:00:51]}  Rb8 {[%clk 0:00:56]} 25. Rad1 {[%clk 0:00:48]}  Qf7 {[%clk 0:00:56]} 26. Nd2 {[%clk 0:00:41]}  Nf4 {[%clk 0:00:45]} 27. Qxf7+ {[%clk 0:00:37]}  Rxf7 {[%clk 0:00:43]} 28. Ne4 {[%clk 0:00:37]}  Nxa5 {[%clk 0:00:38]} 29. Nc5 {[%clk 0:00:37]}  Nc4 {[%clk 0:00:33]} 30. Bc1 {[%clk 0:00:35]}  Nd6 {[%clk 0:00:30]} 31. g3 {[%clk 0:00:35]}  Ng6 {[%clk 0:00:26]} 32. Kg2 {[%clk 0:00:35]}  Re7 {[%clk 0:00:24]} 33. b3 {[%clk 0:00:34]}  a5 {[%clk 0:00:25]} 34. Ba3 {[%clk 0:00:34]}  b5 {[%clk 0:00:21]} 35. Na6 {[%clk 0:00:27]}  Rb6 {[%clk 0:00:20]} 36. Nxc7 {[%clk 0:00:18]}  Rxc7 {[%clk 0:00:19]} 37. Bxd6 {[%clk 0:00:19]}  Rxc3 {[%clk 0:00:19]} 38. b4 {[%clk 0:00:19]}  a4 {[%clk 0:00:19]} 39. Bc5 {[%clk 0:00:19]}  Rb7 {[%clk 0:00:19]} 40. Rd8 {[%clk 0:00:19]}  Ne7 {[%clk 0:00:15]} 41. Red1 {[%clk 0:00:17]}  Nc6 {[%clk 0:00:10]} 42. R8d7+ {[%clk 0:00:08]}  Rxd7 {[%clk 0:00:10]} 43. Rxd7+ {[%clk 0:00:09]}  Kg6 {[%clk 0:00:11]} 44. g4 {[%clk 0:00:10]}  Nd4 {[%clk 0:00:09]} 45. Bf8 {[%clk 0:00:09]}  Ne6 {[%clk 0:00:09]} 46. Be7 {[%clk 0:00:09]}  Rc7 {[%clk 0:00:09]} 47. Rd5 {[%clk 0:00:07]}  Rxe7 {[%clk 0:00:09]} 48. Rxb5 {[%clk 0:00:08]}  Ra7 {[%clk 0:00:08]} 49. Rb6 {[%clk 0:00:08]}  a3 {[%clk 0:00:07]} 50. Ra6 {[%clk 0:00:09]}  Rxa6 {[%clk 0:00:07]} 0-1


[Site "https://www.chess.com"]

[Event "Titled Tuesday Blitz February 07 Early 2023"]
[White "Gabrielian, Artur"]
[Black "Mendez Fortes, Eduardo Jesus"]
[WhiteFideId "4131002"]
[BlackFideId "3502376"]
[WhiteElo "2452"]
[BlackElo "2250"]
[Result "1-0"]
[Round "03"]
[TimeControl "180+2"]
[Date "2023.02.07"]
[WhiteClock "0:00:18"]
[BlackClock "0:00:05"]

1. e4 {[%clk 0:03:00]}  e5 {[%clk 0:02:59]} 2. Nf3 {[%clk 0:03:00]}  Nc6 {[%clk 0:03:00]} 3. Bc4 {[%clk 0:02:59]}  Nf6 {[%clk 0:03:00]} 4. d3 {[%clk 0:02:59]}  Bc5 {[%clk 0:03:00]} 5. Bg5 {[%clk 0:02:58]}  d6 {[%clk 0:03:00]} 6. c3 {[%clk 0:02:58]}  h6 {[%clk 0:03:00]} 7. Bh4 {[%clk 0:02:58]}  Bb6 {[%clk 0:02:59]} 8. Nbd2 {[%clk 0:02:57]}  Qe7 {[%clk 0:02:57]} 9. O-O {[%clk 0:02:54]}  g5 {[%clk 0:02:54]} 10. Bg3 {[%clk 0:02:54]}  Bg4 {[%clk 0:02:54]} 11. b4 {[%clk 0:02:45]}  h5 {[%clk 0:02:50]} 12. h4 {[%clk 0:02:45]}  Nh7 {[%clk 0:02:32]} 13. Qc2 {[%clk 0:02:34]}  a5 {[%clk 0:02:16]} 14. b5 {[%clk 0:02:29]}  Nb8 {[%clk 0:02:14]} 15. d4 {[%clk 0:02:30]}  Nd7 {[%clk 0:02:13]} 16. Bd5 {[%clk 0:02:30]}  O-O-O {[%clk 0:02:07]} 17. Qb3 {[%clk 0:02:03]}  Rhg8 {[%clk 0:01:50]} 18. Bxf7 {[%clk 0:02:00]}  Rg7 {[%clk 0:01:50]} 19. Bd5 {[%clk 0:01:58]}  Rf8 {[%clk 0:01:49]} 20. Kh1 {[%clk 0:01:53]}  Kb8 {[%clk 0:01:19]} 21. Rae1 {[%clk 0:01:50]}  Bxf3 {[%clk 0:00:48]} 22. Nxf3 {[%clk 0:01:48]}  Rxf3 {[%clk 0:00:46]} 23. gxf3 {[%clk 0:01:47]}  exd4 {[%clk 0:00:47]} 24. cxd4 {[%clk 0:01:21]}  Bxd4 {[%clk 0:00:46]} 25. Rc1 {[%clk 0:00:59]}  Ne5 {[%clk 0:00:39]} 26. Rfd1 {[%clk 0:00:54]}  Bb6 {[%clk 0:00:36]} 27. Rg1 {[%clk 0:00:48]}  a4 {[%clk 0:00:20]} 28. Qc3 {[%clk 0:00:45]}  gxh4 {[%clk 0:00:18]} 29. Bh2 {[%clk 0:00:44]}  Rxg1+ {[%clk 0:00:19]} 30. Rxg1 {[%clk 0:00:44]}  Bxf2 {[%clk 0:00:20]} 31. Rg8+ {[%clk 0:00:40]}  Nf8 {[%clk 0:00:20]} 32. Qd2 {[%clk 0:00:27]}  Bg3 {[%clk 0:00:14]} 33. Qh6 {[%clk 0:00:26]}  Nd7 {[%clk 0:00:13]} 34. Qe6 {[%clk 0:00:26]}  Qd8 {[%clk 0:00:11]} 35. Qf7 {[%clk 0:00:25]}  Ka7 {[%clk 0:00:10]} 36. Be6 {[%clk 0:00:22]}  c6 {[%clk 0:00:08]} 37. bxc6 {[%clk 0:00:20]}  Qa5 {[%clk 0:00:09]} 38. Bg1+ {[%clk 0:00:19]}  Ka6 {[%clk 0:00:08]} 39. cxd7 {[%clk 0:00:18]}  Qc3 {[%clk 0:00:08]} 40. Bc4+ {[%clk 0:00:19]}  b5 {[%clk 0:00:07]} 41. d8=Q {[%clk 0:00:19]}  Qxf3+ {[%clk 0:00:05]} 42. Qxf3 {[%clk 0:00:18]} 1-0


[Site "https://www.chess.com"]